bitfinex/quotes_SOLUSD_20220130
["timestamp","ask_amount","ask_price","bid_price","bid_amount"]
[1643545035544,15.674,95.81,95.763,4.688e-05]
[1643545036748,0.30833748,95.764,95.693,451.23642632]
[1643545036951,0.31183882,95.743,95.684,104.3]
[1643545037747,0.30567514,95.763,95.698,43.59817867]
[1643545037947,2.95669142,95.752,95.683,0.050337]
[1643545038347,2.95669142,95.752,95.691,0.25]
[1643545038947,2.95669142,95.752,95.691,34.32491206]
[1643545039552,15.68,95.75,95.691,34.32491206]
[1643545040452,15.677,95.77,95.691,34.32491206]
[1643545040649,1.44060333,95.814,95.691,34.32491206]
[1643545040650,52.25,95.8,95.701,9.05]
[1643545040849,52.25,95.8,95.696,2.17517611]
[1643545040850,2.95669142,95.794,95.696,2.17517611]
[1643545041051,2.95669142,95.794,95.697,0.25]
[1643545041450,12.57699241,95.794,95.697,0.25]
[1643545041652,15.677,95.77,95.697,0.25]
[1643545042065,2.95669142,95.769,95.697,0.25]
[1643545042352,2.95669142,95.769,95.693,0.2]
[1643545042750,2.95669142,95.769,95.694,0.25]
[1643545043152,2.95669142,95.769,95.697,46.14984063]
[1643545043377,2.95669142,95.769,95.698,0.45]
[1643545044079,15.68,95.76,95.698,0.45]
[1643545044279,15.68,95.76,95.698,0.25]
[1643545044682,15.68,95.76,95.694,0.25]
[1643545045280,2.95669142,95.759,95.693,0.2]
[1643545045680,2.95669142,95.759,95.69,5.6]
[1643545047083,42.0,95.749,95.723,0.3110033]
[1643545047286,15.686,95.74,95.723,0.0010033]
[1643545047685,2.95669142,95.739,95.723,0.0010033]
[1643545049893,15.686,95.74,95.723,0.0010033]
[1643545050489,2.95669142,95.739,95.723,0.0010033]
[1643545051191,15.686,95.73,95.69,5.6]
[1643545051491,14.235797,95.729,95.69,5.6]
[1643545051692,17.19248842,95.729,95.69,5.6]
[1643545051890,17.19248842,95.728,95.69,5.6]
[1643545052090,14.235797,95.727,95.69,5.6]
[1643545052288,52.287,95.74,95.69,5.6]
[1643545053089,15.688,95.72,95.69,5.6]
[1643545059595,15.688,95.72,95.691,38.78080869]
[1643545059799,15.682,95.74,95.692,0.45]
[1643545060002,1.44060333,95.777,95.692,0.45]
[1643545060198,1.44060333,95.783,95.701,6.0]
[1643545060396,2.95669142,95.789,95.702,0.25]
[1643545060597,2.95669142,95.789,95.702,47.5942]
[1643545060799,2.95669142,95.789,95.703,0.2]
[1643545060998,15.679,95.76,95.703,0.2]
[1643545062898,15.679,95.76,95.703,0.45]
[1643545064300,2.95669142,95.759,95.703,0.2]
[1643545064500,15.682,95.75,95.69,5.6]
[1643545064901,2.95669142,95.749,95.69,5.6]
[1643545065502,2.95669142,95.749,95.691,0.25]
[1643545065700,15.683,95.74,95.691,0.25]
[1643545066602,52.28,95.76,95.691,0.25]
[1643545067404,2.95669142,95.759,95.691,0.25]
[1643545067603,15.681,95.75,95.691,0.25]
[1643545069403,2.95669142,95.749,95.691,0.25]
[1643545069703,15.681,95.75,95.691,0.25]
[1643545069905,15.681,95.75,95.69,5.6]
[1643545070604,2.95669142,95.749,95.69,5.6]
[1643545070804,15.681,95.75,95.691,0.25]
[1643545071204,2.95669142,95.749,95.691,0.25]
[1643545071604,15.681,95.75,95.691,0.25]
[1643545073407,15.681,95.75,95.69,5.6]
[1643545073607,15.681,95.75,95.691,0.25]
[1643545075307,15.681,95.75,95.69,5.6]
[1643545076511,2.95669142,95.749,95.69,5.6]
[1643545078210,2.95669142,95.749,95.691,0.25]
[1643545079912,2.95669142,95.749,95.69,5.6]
[1643545080112,15.683,95.74,95.69,5.6]
[1643545081319,15.683,95.74,95.691,0.25]
[1643545082115,2.95669142,95.739,95.691,0.25]
[1643545083915,15.683,95.74,95.691,0.25]
[1643545084117,2.95669142,95.759,95.691,0.25]
[1643545084419,2.95669142,95.759,95.691,24.0546]
[1643545084619,2.95669142,95.759,95.692,0.2]
[1643545086018,15.682,95.75,95.692,0.2]
[1643545086218,15.682,95.75,95.69,5.6]
[1643545086418,2.95669142,95.749,95.691,0.25]
[1643545087218,2.95669142,95.749,95.69,5.6]
[1643545088821,2.95669142,95.749,95.691,0.25]
[1643545089321,15.679,95.77,95.691,0.25]
[1643545090427,2.95669142,95.779,95.691,0.25]
[1643545090629,2.95669142,95.779,95.691,1.69427403]
[1643545090832,2.95669142,95.779,95.693,1.44427403]
[1643545091130,2.95669142,95.779,95.694,33.59421445]
[1643545091331,1.44060333,95.784,95.695,0.2]
[1643545091531,1.44060333,95.784,95.695,1.64427403]
[1643545091731,2.95669142,95.789,95.695,1.64427403]
[1643545091732,1.44060333,95.785,95.695,0.2]
[1643545091932,1.44060333,95.785,95.696,0.25]
[1643545092152,1.44060333,95.785,95.695,0.2]
[1643545092353,1.44060333,95.787,95.697,2.1713184]
[1643545092755,1.44060333,95.786,95.698,0.25]
[1643545092960,2.95669142,95.787,95.696,3.61559243]
[1643545093460,2.95669142,95.787,95.699,1.44427403]
[1643545093860,2.95669142,95.787,95.7,0.25]
[1643545094860,2.95669142,95.787,95.699,0.25]
[1643545096261,2.95669142,95.787,95.699,2.4213184]
[1643545096460,15.676,95.79,95.699,2.1713184]
[1643545096658,15.676,95.79,95.7,0.25]
[1643545098259,15.676,95.79,95.7,2.4213184]
[1643545098462,15.676,95.79,95.7,2.1713184]
[1643545098661,15.676,95.79,95.701,0.25]
[1643545100265,15.676,95.79,95.701,2.4213184]
[1643545100467,104.3,95.8,95.701,2.1713184]
[1643545100669,1.44060333,95.801,95.712,104.3]
[1643545100867,1.44060333,95.801,95.713,95.73152488]
[1643545101071,1.44060333,95.81,95.723,6.0]
[1643545101269,1.44060333,95.815,95.724,0.25]
[1643545101567,1.44060333,95.818,95.724,24.5915]
[1643545101769,2.95669142,95.814,95.725,0.2]
[1643545101967,4.39729475,95.814,95.725,0.2]
[1643545102367,2.95669142,95.814,95.725,0.2]
[1643545102568,4.39729475,95.814,95.725,0.2]
[1643545102768,2.95669142,95.814,95.725,0.2]
[1643545103801,15.672,95.81,95.725,0.2]
[1643545104200,2.95669142,95.809,95.725,0.2]
[1643545104802,15.672,95.81,95.725,0.2]
[1643545105201,1.44060333,95.818,95.734,6.0]
[1643545105503,23.3277,95.819,95.735,66.2479593]
[1643545105701,23.3277,95.819,95.736,0.2]
[1643545105901,23.3277,95.819,95.736,0.45]
[1643545106104,24.76830333,95.819,95.736,0.45]
[1643545106301,2.95669142,95.818,95.736,0.45]
[1643545106902,2.95669142,95.818,95.736,104.75]
[1643545107104,2.95669142,95.818,95.737,0.2]
[1643545108204,2.95669142,95.818,95.736,0.45]
[1643545109704,2.95669142,95.818,95.736,104.75]
[1643545109905,2.95669142,95.818,95.737,0.2]
[1643545111309,2.95669142,95.818,95.736,0.45]
[1643545111907,4.39729475,95.818,95.736,0.45]
[1643545112307,2.95669142,95.817,95.736,104.75]
[1643545112608,2.95669142,95.817,95.737,0.2]
[1643545112807,2.95669142,95.817,95.736,0.45]
[1643545113606,2.95669142,95.817,95.736,104.75]
[1643545113810,2.95669142,95.817,95.737,0.2]
[1643545114309,2.95669142,95.817,95.736,0.45]
[1643545114510,1.44060333,95.816,95.736,0.2]
[1643545114808,2.95669142,95.817,95.736,0.2]
[1643545115413,2.95669142,95.817,95.736,104.5]
[1643545115610,2.95669142,95.817,95.737,0.2]
[1643545115809,2.95669142,95.817,95.737,0.45]
[1643545116713,4.39729475,95.817,95.736,104.15]
[1643545116911,1.44060333,95.815,95.736,104.15]
[1643545117311,0.25,95.814,95.736,104.15]
[1643545117513,0.25,95.814,95.746,110.15]
[1643545117713,4.39729475,95.817,95.747,23.7407]
[1643545117914,2.95669142,95.817,95.747,23.7407]
[1643545118116,0.25,95.816,95.747,23.7407]
[1643545118314,0.25,95.816,95.748,0.25]
[1643545118513,1.44060333,95.814,95.748,0.25]
[1643545119316,1.44060333,95.815,95.748,0.25]
[1643545119516,1.44060333,95.814,95.748,0.25]
[1643545120117,1.44060333,95.815,95.748,0.25]
[1643545120519,1.44060333,95.813,95.748,0.25]
[1643545121721,1.44060333,95.812,95.748,0.25]
[1643545121921,1.44060333,95.812,95.748,0.35]
[1643545123926,0.25,95.811,95.748,0.35]
[1643545125529,1.69060333,95.811,95.757,6.0]
[1643545125729,0.25,95.811,95.758,36.7658943]
[1643545125929,0.25,95.811,95.759,24.6212]
[1643545126130,0.25,95.811,95.76,0.1]
[1643545126333,0.25,95.811,95.76,0.35]
[1643545126530,1.69060333,95.811,95.76,0.35]
[1643545127131,15.7764,95.908,95.76,0.25]
[1643545127333,2.95669142,95.831,95.76,0.25]
[1643545128434,2.95669142,95.845,95.76,104.55]
[1643545128732,15.3362,95.868,95.77,110.3]
[1643545128934,2.89334236,95.867,95.772,104.3]
[1643545129135,2.89334236,95.867,95.782,6.0]
[1643545129337,2.89334236,95.867,95.783,23.5319]
[1643545129751,2.95669142,95.866,95.783,23.5319]
[1643545130156,2.89334236,95.865,95.783,23.5319]
[1643545132154,2.95669142,95.864,95.783,23.5319]
[1643545139466,15.665,95.86,95.783,0.25]
[1643545139770,107.25669142,95.859,95.774,0.25]
[1643545140165,5.84093015,95.858,95.703,17.50844532]
[1643545140367,107.18423873,95.857,95.703,17.50844532]
[1643545140668,2.88423873,95.856,95.705,104.3]
[1643545140866,104.3,95.855,95.706,2.89753271]
[1643545141067,15.669,95.84,95.716,110.3]
[1643545141266,15.669,95.84,95.717,0.25]
[1643545141467,15.669,95.84,95.721,41.75515673]
[1643545141667,2.95669142,95.839,95.722,104.3]
[1643545141867,2.95669142,95.839,95.732,104.3]
[1643545142067,2.95669142,95.839,95.734,104.3]
[1643545142270,2.95669142,95.839,95.735,0.25]
[1643545142469,2.95669142,95.839,95.744,6.0]
[1643545142668,2.95669142,95.839,95.745,38.15113718]
[1643545142871,2.95669142,95.839,95.745,38.40113718]
[1643545143368,2.95669142,95.839,95.746,47.1747]
[1643545143771,2.95669142,95.839,95.747,0.25]
[1643545144171,15.67,95.83,95.747,0.25]
[1643545144571,2.95669142,95.829,95.747,0.25]
[1643545145071,2.95669142,95.829,95.746,0.25]
[1643545145271,0.72984774,95.828,95.705,0.25]
[1643545145675,2.95669142,95.827,95.705,46.2125]
[1643545145874,2.95669142,95.827,95.706,46.69275933]
[1643545146076,15.671,95.82,95.706,46.69275933]
[1643545146476,2.95669142,95.819,95.706,46.69275933]
[1643545146874,0.72984774,95.818,95.706,46.69275933]
[1643545147274,2.95669142,95.817,95.706,46.69275933]
[1643545147477,15.675,95.8,95.706,150.99275933]
[1643545147875,15.675,95.8,95.707,0.25]
[1643545148077,2.95669142,95.799,95.707,0.25]
[1643545148701,15.675,95.8,95.707,0.25]
[1643545148900,15.675,95.8,95.716,6.0]
[1643545149103,15.675,95.8,95.707,0.25]
[1643545150005,15.675,95.8,95.716,6.0]
[1643545150204,15.675,95.8,95.707,0.25]
[1643545150402,15.675,95.8,95.706,46.69275933]
[1643545150603,107.25669142,95.799,95.706,46.69275933]
[1643545151003,2.95669142,95.798,95.706,46.69275933]
[1643545151202,15.676,95.79,95.706,46.69275933]
[1643545151706,2.95669142,95.811,95.706,150.99275933]
[1643545151903,2.95669142,95.811,95.707,0.25]
[1643545152513,2.95669142,95.811,95.707,23.5688]
[1643545153207,15.672,95.81,95.707,23.5688]
[1643545153608,107.25669142,95.809,95.707,23.5688]
[1643545154007,2.95669142,95.808,95.707,23.5688]
[1643545154409,15.674,95.8,95.707,23.5688]
[1643545157213,104.3,95.799,95.707,23.5688]
[1643545158215,15.676,95.79,95.707,23.5688]
[1643545166120,67.5316,95.84,95.707,23.5688]
[1643545166318,15.2956,95.84,95.718,104.3]
[1643545166518,4.32075797,95.879,95.728,6.0]
[1643545166718,2.8836933,95.867,95.73,33.39565086]
[1643545166919,2.8836933,95.885,95.731,104.3]
[1643545167119,2.8836933,95.885,95.741,110.3]
[1643545167322,2.8836933,95.885,95.742,0.25]
[1643545167520,9.2981528,95.884,95.751,33.83626944]
[1643545167924,9.2981528,95.898,95.761,6.0]
[1643545168321,2.88787193,95.897,95.762,0.25]
[1643545168521,9.2981528,95.899,95.762,0.25]
[1643545168522,2.88787193,95.898,95.762,0.25]
[1643545168720,9.2981528,95.896,95.762,175.9266]
[1643545168926,2.88787193,95.895,95.762,190.1066]
[1643545169122,2.88787193,95.895,95.78,15.658]
[1643545169323,2.88787193,95.895,95.781,37.15134746]
[1643545169523,12.25484422,95.894,95.791,6.0]
[1643545169725,12.25484422,95.894,95.793,104.3]
[1643545169932,2.95669142,95.893,95.793,104.3]
[1643545170123,2.95669142,95.893,95.804,104.3]
[1643545170325,2.95669142,95.904,95.805,85.0507083]
[1643545170526,2.95669142,95.904,95.815,110.3]
[1643545170723,9.30126596,95.903,95.815,110.3]
[1643545170923,9.30126596,95.903,95.816,0.25]
[1643545171124,2.95669142,95.902,95.816,0.25]
[1643545173126,2.95669142,95.902,95.806,104.55]
[1643545174125,9.28923422,95.901,95.806,104.55]
[1643545174558,2.95669142,95.9,95.816,6.0]
[1643545174927,2.95669142,95.9,95.817,0.25]
[1643545175528,2.95669142,95.9,95.826,6.0]
[1643545175733,2.95669142,95.922,95.827,147.39593724]
[1643545175929,2.95669142,95.922,95.827,147.64593724]
[1643545176527,2.95669142,95.922,95.828,24.2656]
[1643545176929,2.95669142,95.922,95.829,0.25]
[1643545177130,2.95669142,95.922,95.83,15.65]
[1643545177428,2.95669142,95.922,95.831,104.55]
[1643545179330,9.28551891,95.921,95.831,104.55]
[1643545179730,2.95669142,95.92,95.832,23.4996]
[1643545179931,2.95669142,95.92,95.833,104.3]
[1643545180130,18.61069142,95.92,95.833,104.3]
[1643545180330,18.61069142,95.92,95.834,0.25]
[1643545180530,2.95669142,95.919,95.834,0.25]
[1643545182132,2.95669142,95.919,95.844,36.57045301]
[1643545182431,2.95669142,95.919,95.845,24.7506]
[1643545182631,2.95669142,95.919,95.714,3.0]
[1643545182632,2.95669142,95.919,95.741,5.0]
[1643545182832,112.9,95.917,95.806,24.5006]
[1643545183234,28.36234598,95.916,95.806,24.5006]
[1643545183539,15.656,95.91,95.796,43.44563922]
[1643545183737,15.656,95.91,95.749,46.8625]
[1643545183738,0.30618706,95.907,95.749,46.8625]
[1643545183935,2.86660051,95.906,95.749,46.8625]
[1643545184132,18.90774917,95.906,95.749,46.8625]
[1643545184332,116.43298611,95.905,95.749,46.8625]
[1643545184536,116.43298611,95.905,95.75,104.3]
[1643545184537,2.86660051,95.904,95.75,104.3]
[1643545184833,152.22309845,95.904,95.752,104.3]
[1643545185033,19.09596038,95.903,95.762,6.0]
[1643545185334,29.01534928,95.903,95.763,127.4323]
[1643545185632,12.22307702,95.902,95.763,127.4323]
[1643545185832,15.661,95.89,95.763,127.4323]
[1643545186237,2.95669142,95.889,95.763,127.4323]
[1643545186432,107.90969472,95.889,95.763,127.4323]
[1643545186633,2.95669142,95.889,95.763,127.4323]
[1643545186833,3.60969472,95.888,95.763,127.4323]
[1643545187232,3.60969472,95.887,95.763,127.4323]
[1643545187735,2.95669142,95.886,95.763,127.4323]
[1643545188134,15.662,95.88,95.763,127.4323]
[1643545188534,2.95669142,95.879,95.763,127.4323]
[1643545189133,15.663,95.87,95.763,127.4323]
[1643545189537,2.95669142,95.869,95.763,127.4323]
[1643545192235,15.664,95.86,95.763,127.1823]
[1643545192636,2.95669142,95.859,95.763,127.1823]
[1643545193139,15.664,95.86,95.763,127.1823]
[1643545193339,2.95669142,95.859,95.763,127.1823]
[1643545193538,2.95669142,95.859,95.764,0.25]
[1643545193837,15.666,95.85,95.764,0.25]
[1643545194238,2.95669142,95.849,95.751,35.77237415]
[1643545194641,3.60969472,95.849,95.751,35.77237415]
[1643545194840,2.95669142,95.849,95.751,35.77237415]
[1643545195042,2.95669142,95.848,95.751,35.77237415]
[1643545195642,2.95669142,95.848,95.752,24.6673]
[1643545197068,15.668,95.84,95.752,24.6673]
[1643545197471,2.95669142,95.839,95.752,24.6673]
[1643545199073,4.26269802,95.851,95.752,24.6673]
[1643545199276,2.95669142,95.851,95.752,24.6673]
[1643545199473,2.95669142,95.873,95.752,24.6673]
[1643545199674,2.95669142,95.873,95.753,104.3]
[1643545199874,2.88045809,95.872,95.754,0.25]
[1643545200273,15.662,95.87,95.754,0.25]
[1643545200473,2.88045809,95.869,95.752,24.4173]
[1643545200676,110.13714951,95.869,95.752,24.4173]
[1643545200872,6.49015281,95.868,95.752,24.4173]
[1643545201074,2.88045809,95.867,95.752,24.4173]
[1643545201276,5.83714951,95.867,95.752,24.4173]
[1643545201474,3.60969472,95.866,95.752,24.4173]
[1643545201674,6.49015281,95.866,95.752,24.4173]
[1643545201876,2.95669142,95.865,95.753,0.25]
[1643545202075,15.664,95.86,95.753,0.25]
[1643545202476,2.95669142,95.859,95.753,0.25]
[1643545203077,2.95669142,95.859,95.753,104.55]
[1643545203476,2.95669142,95.859,95.764,104.3]
[1643545203678,2.95669142,95.859,95.765,24.3437]
[1643545203877,2.95669142,95.859,95.766,104.3]
[1643545204275,2.95669142,95.859,95.767,0.25]
[1643545205977,2.95669142,95.859,95.775,6.0]
[1643545206178,2.95669142,95.859,95.766,104.55]
[1643545206478,15.666,95.85,95.766,0.25]
[1643545206678,15.666,95.85,95.752,23.3937]
[1643545206877,2.95669142,95.849,95.752,23.3937]
[1643545207080,2.95669142,95.849,95.753,104.3]
[1643545207277,2.95669142,95.849,95.754,0.25]
[1643545207476,15.666,95.85,95.754,0.25]
[1643545208480,15.666,95.85,95.764,104.3]
[1643545208883,2.95669142,95.865,95.765,0.25]
[1643545209084,2.95669142,95.849,95.765,0.25]
[1643545209885,2.95669142,95.849,95.764,0.25]
[1643545210485,2.95669142,95.849,95.763,24.5534]
[1643545211786,2.95669142,95.849,95.764,0.25]
[1643545212288,15.667,95.84,95.764,0.25]
[1643545212685,2.95669142,95.839,95.764,0.25]
[1643545213085,2.95669142,95.839,95.764,104.55]
[1643545213286,2.95669142,95.852,95.764,0.25]
[1643545215588,2.95669142,95.866,95.764,0.25]
[1643545215818,2.95669142,95.866,95.764,104.55]
[1643545215988,2.89076138,95.865,95.764,104.55]
[1643545216390,2.95669142,95.866,95.764,104.55]
[1643545216989,2.95669142,95.866,95.77,15.659]
[1643545217291,2.95669142,95.866,95.771,104.55]
[1643545217990,2.95669142,95.866,95.78,15.658]
[1643545218190,2.95669142,95.866,95.781,43.53600451]
[1643545218394,5.84737387,95.878,95.781,43.78600451]
[1643545218593,2.95669142,95.878,95.781,43.78600451]
[1643545219091,2.95669142,95.878,95.782,48.839]
[1643545219297,2.95669142,95.878,95.783,0.25]
[1643545219897,2.95669142,95.878,95.783,104.55]
[1643545221196,2.95669142,95.878,95.783,0.25]
[1643545222101,2.89080604,95.877,95.783,0.25]
[1643545222296,2.95669142,95.878,95.783,0.25]
[1643545222498,2.95669142,95.876,95.783,0.25]
[1643545223094,2.88978889,95.875,95.783,0.25]
[1643545223526,2.95669142,95.874,95.783,0.25]
[1643545224028,2.95669142,95.874,95.792,6.0]
[1643545224228,2.95669142,95.887,95.792,6.0]
[1643545224429,2.95669142,95.887,95.793,6.25]
[1643545225032,2.95669142,95.887,95.803,6.0]
[1643545225430,2.95669142,95.887,95.804,0.25]
[1643545225928,2.95669142,95.887,95.804,24.4478]
[1643545226128,2.95669142,95.887,95.805,104.3]
[1643545226328,2.95669142,95.887,95.806,0.25]
[1643545228133,2.95669142,95.901,95.806,0.25]
[1643545229233,15.658,95.9,95.806,0.25]
[1643545229433,2.95669142,95.901,95.806,0.25]
[1643545230636,2.89068245,95.919,95.816,44.33208]
[1643545230836,2.95669142,95.921,95.817,104.55]
[1643545231037,0.1,95.929,95.827,6.0]
[1643545231234,2.95669142,95.933,95.827,6.0]
[1643545231235,2.88529364,95.932,95.827,6.0]
[1643545231437,2.95669142,95.925,95.828,0.25]
[1643545231836,2.95669142,95.925,95.83,15.649]
[1643545232036,2.95669142,95.925,95.841,104.3]
[1643545232437,2.95669142,95.925,95.842,0.25]
[1643545233238,2.95669142,95.925,95.842,25.0685]
[1643545233738,2.95669142,95.925,95.843,104.3]
[1643545234136,2.95669142,95.925,95.844,0.25]
[1643545235241,0.1,95.929,95.843,104.55]
[1643545235538,2.95669142,95.938,95.854,104.3]
[1643545235939,2.95669142,95.938,95.855,0.25]
[1643545236139,2.95669142,95.938,95.856,104.3]
[1643545236339,2.95669142,95.938,95.857,0.25]
[1643545237542,2.95669142,95.938,95.866,6.0]
[1643545237942,2.95669142,95.938,95.867,0.25]
[1643545238141,2.95669142,95.955,95.867,0.25]
[1643545238344,0.7530033,95.957,95.867,152.92]
[1643545238345,2.95669142,95.954,95.867,152.92]
[1643545238542,12.28269376,95.954,95.867,152.92]
[1643545238741,0.1,95.953,95.867,48.62]
[1643545238944,15.649,95.95,95.867,48.62]
[1643545239142,0.1,95.949,95.867,48.62]
[1643545239342,3.05669142,95.949,95.867,48.62]
[1643545239841,2.95669142,95.948,95.867,48.62]
[1643545242071,2.95669142,95.948,95.867,152.92]
[1643545243146,2.95669142,95.948,95.867,48.62]
[1643545244450,15.651,95.94,95.867,48.62]
[1643545244647,0.1,95.939,95.867,48.62]
[1643545244848,3.05669142,95.939,95.867,48.62]
[1643545245648,2.95669142,95.938,95.867,48.62]
[1643545245847,2.95669142,95.938,95.867,48.37]
[1643545247149,1.43919833,95.937,95.867,48.37]
[1643545247350,4.39588975,95.938,95.868,0.25]
[1643545247550,2.95669142,95.936,95.868,0.25]
[1643545247752,15.653,95.93,95.81,15.652]
[1643545247952,0.1,95.929,95.802,1.44361014]
[1643545248153,1.43919833,95.925,95.794,1.44361014]
[1643545248359,3.60969472,95.929,95.775,112.695]
[1643545248360,1.43919833,95.92,95.789,1.44361014]
[1643545248649,1.43919833,95.914,95.785,37.75298763]
[1643545248850,1.43919833,95.914,95.799,6.0]
[1643545249049,17.09519833,95.91,95.795,6.0]
[1643545249250,15.656,95.91,95.795,6.0]
[1643545249585,2.95669142,95.909,95.8,6.0]
[1643545249951,4.39588975,95.909,95.8,6.0]
[1643545250150,4.39588975,95.909,95.801,6.0]
[1643545250549,2.95669142,95.908,95.801,6.0]
[1643545250750,4.39588975,95.908,95.791,22.7209]
[1643545250952,1.43919833,95.906,95.792,128.5872]
[1643545251354,2.95669142,95.905,95.792,128.5872]
[1643545251553,15.657,95.9,95.792,128.5872]
[1643545252053,4.39588975,95.905,95.802,6.0]
[1643545252253,4.39588975,95.905,95.803,25.1557]
[1643545252254,1.43919833,95.903,95.803,25.1557]
[1643545252453,1.43919833,95.904,95.803,25.1557]
[1643545252653,1.43919833,95.904,95.813,6.0]
[1643545252857,4.39588975,95.905,95.814,46.06722975]
[1643545253055,2.95669142,95.903,95.814,45.81722975]
[1643545253253,2.95669142,95.903,95.815,24.3412]
[1643545255060,1.43919833,95.904,95.815,24.3412]
[1643545255361,1.43919833,95.903,95.816,104.3]
[1643545255756,1.43919833,95.903,95.817,0.25]
[1643545256757,1.43919833,95.901,95.817,0.25]
[1643545257659,1.43919833,95.9,95.817,0.25]
[1643545258261,1.43919833,95.901,95.817,0.25]
[1643545258860,1.43919833,95.9,95.817,0.25]
[1643545259061,1.43919833,95.899,95.817,0.25]
[1643545259760,4.39588975,95.899,95.817,0.25]
[1643545259960,1.43919833,95.902,95.817,0.25]
[1643545260162,1.43919833,95.902,95.826,6.0]
[1643545260364,1.43919833,95.902,95.827,104.55]
[1643545260561,1.43919833,95.903,95.827,104.55]
[1643545261562,1.43919833,95.903,95.828,22.96]
[1643545261963,1.43919833,95.903,95.829,0.25]
[1643545263371,1.43919833,95.902,95.829,0.25]
[1643545263766,2.95669142,95.915,95.829,0.25]
[1643545263767,1.43919833,95.903,95.829,0.25]
[1643545263964,1.43919833,95.902,95.829,0.25]
[1643545266490,1.43919833,95.906,95.829,0.25]
[1643545266889,1.43919833,95.908,95.829,0.25]
[1643545267090,1.43919833,95.908,95.838,6.0]
[1643545267289,1.43919833,95.914,95.839,104.55]
[1643545267489,1.43919833,95.914,95.839,110.55]
[1643545267690,1.43919833,95.918,95.839,104.55]
[1643545267890,1.43919833,95.92,95.85,33.61635723]
[1643545268093,1.43919833,95.922,95.86,6.0]
[1643545268389,1.43919833,95.923,95.861,0.25]
[1643545268588,1.43919833,95.923,95.861,6.25]
[1643545268792,1.43919833,95.924,95.861,6.25]
[1643545268990,1.43919833,95.924,95.863,104.3]
[1643545269193,1.43919833,95.925,95.863,104.3]
[1643545269390,0.1,95.959,95.862,24.5423]
[1643545269391,1.43919833,95.928,95.874,104.3]
[1643545269591,1.43919833,95.939,95.874,104.3]
[1643545269790,1.43919833,95.938,95.875,0.25]
[1643545269990,1.43919833,95.943,95.852,24.4465]
[1643545270192,1.43919833,95.939,95.875,0.25]
[1643545270489,15.648,95.96,95.875,0.25]
[1643545270490,1.43919833,95.941,95.875,0.25]
[1643545270693,1.43919833,95.945,95.875,0.25]
[1643545271293,1.43919833,95.947,95.86,0.25]
[1643545271495,1.43919833,95.948,95.86,0.25]
[1643545271694,1.43919833,95.947,95.86,0.25]
[1643545271893,1.43919833,95.95,95.86,0.25]
[1643545272696,1.43919833,95.951,95.86,0.25]
[1643545272900,2.95669142,95.958,95.861,104.3]
[1643545272901,1.43919833,95.952,95.861,104.3]
[1643545273302,1.43919833,95.952,95.862,0.25]
[1643545273899,1.43919833,95.955,95.862,0.25]
[1643545274100,1.43919833,95.955,95.871,104.3]
[1643545274298,1.43919833,95.955,95.872,24.341]
[1643545274498,1.43919833,95.955,95.873,104.3]
[1643545274899,1.43919833,95.955,95.874,0.25]
[1643545275199,1.43919833,95.956,95.874,0.25]
[1643545275803,1.43919833,95.957,95.874,0.25]
[1643545276001,2.95669142,95.958,95.874,0.25]
[1643545276002,4.39588975,95.958,95.874,0.25]
[1643545276200,2.95669142,95.958,95.874,0.25]
[1643545277702,2.95669142,95.958,95.874,14.34]
[1643545277904,2.95669142,95.958,95.875,104.3]